[Event "Titled Tuesday Blitz January 17 Early 2023"]
[White "Bocharov, Dmitry"]
[Black "Narayanan, Srinath"]
[WhiteFideId "4138716"]
[BlackFideId "5018420"]
[WhiteElo "2516"]
[BlackElo "2559"]
[Result "0-1"]
[Round "04"]
[TimeControl "180+2"]
[Date "2023.01.17"]
[WhiteClock "0:00:40"]
[BlackClock "0:01:11"]

1. d4 {[%clk 0:03:00]}  d5 {[%clk 0:02:58]} 2. c4 {[%clk 0:02:59]}  dxc4 {[%clk 0:02:58]} 3. Nf3 {[%clk 0:02:59]}  Nf6 {[%clk 0:02:58]} 4. e3 {[%clk 0:02:56]}  e6 {[%clk 0:02:58]} 5. Bxc4 {[%clk 0:02:56]}  c5 {[%clk 0:02:57]} 6. O-O {[%clk 0:02:56]}  a6 {[%clk 0:02:57]} 7. Nbd2 {[%clk 0:02:55]}  Nbd7 {[%clk 0:02:54]} 8. e4 {[%clk 0:02:46]}  cxd4 {[%clk 0:02:47]} 9. e5 {[%clk 0:02:45]}  Ng4 {[%clk 0:02:45]} 10. Qe2 {[%clk 0:02:42]}  Qc7 {[%clk 0:02:42]} 11. Re1 {[%clk 0:02:40]}  b5 {[%clk 0:02:42]} 12. Bd3 {[%clk 0:02:39]}  Bb7 {[%clk 0:02:42]} 13. h3 {[%clk 0:02:37]}  Nh6 {[%clk 0:02:42]} 14. Nb3 {[%clk 0:02:24]}  Rd8 {[%clk 0:02:40]} 15. Bd2 {[%clk 0:02:23]}  Qb8 {[%clk 0:02:18]} 16. Rac1 {[%clk 0:02:05]}  Be7 {[%clk 0:02:18]} 17. Nbxd4 {[%clk 0:01:59]}  Nc5 {[%clk 0:02:08]} 18. Bb1 {[%clk 0:01:40]}  Bxf3 {[%clk 0:01:55]} 19. Nxf3 {[%clk 0:01:39]}  Nf5 {[%clk 0:01:56]} 20. Bb4 {[%clk 0:01:30]}  Nd3 {[%clk 0:01:41]} 21. Bxd3 {[%clk 0:01:17]}  Bxb4 {[%clk 0:01:41]} 22. Red1 {[%clk 0:01:15]}  O-O {[%clk 0:01:42]} 23. Bxf5 {[%clk 0:01:14]}  exf5 {[%clk 0:01:42]} 24. Nd4 {[%clk 0:01:10]}  Qb6 {[%clk 0:01:31]} 25. Nxf5 {[%clk 0:01:00]}  Rxd1+ {[%clk 0:01:32]} 26. Rxd1 {[%clk 0:01:00]}  g6 {[%clk 0:01:23]} 27. a3 {[%clk 0:00:53]}  Bc5 {[%clk 0:01:21]} 28. Nd6 {[%clk 0:00:50]}  b4 {[%clk 0:01:20]} 29. axb4 {[%clk 0:00:46]}  Qxb4 {[%clk 0:01:21]} 30. Rd5 {[%clk 0:00:46]}  a5 {[%clk 0:01:18]} 31. Qf3 {[%clk 0:00:44]}  Qe1+ {[%clk 0:01:12]} 32. Kh2 {[%clk 0:00:44]}  Bxf2 {[%clk 0:01:13]} 33. Qd1 {[%clk 0:00:40]}  Bg3# {[%clk 0:01:11]} 0-1


[Site "https://www.chess.com"]

[Event "Titled Tuesday Blitz January 17 Early 2023"]
[White "Zierk, Steven"]
[Black "Trent, Lawrence"]
[WhiteFideId "2034255"]
[BlackFideId "408638"]
[WhiteElo "2488"]
[BlackElo "2403"]
[Result "1-0"]
[Round "04"]
[TimeControl "180+2"]
[Date "2023.01.17"]
[WhiteClock "0:01:10"]
[BlackClock "0:00:37"]

1. e4 {[%clk 0:03:00]}  c5 {[%clk 0:02:58]} 2. Nf3 {[%clk 0:03:00]}  d6 {[%clk 0:02:58]} 3. d4 {[%clk 0:03:01]}  cxd4 {[%clk 0:02:58]} 4. Nxd4 {[%clk 0:03:02]}  Nf6 {[%clk 0:02:59]} 5. Nc3 {[%clk 0:03:02]}  g6 {[%clk 0:02:59]} 6. Be3 {[%clk 0:03:02]}  a6 {[%clk 0:03:00]} 7. f3 {[%clk 0:03:00]}  b5 {[%clk 0:03:00]} 8. a4 {[%clk 0:02:55]}  b4 {[%clk 0:03:00]} 9. Na2 {[%clk 0:02:55]}  a5 {[%clk 0:02:42]} 10. c3 {[%clk 0:02:53]}  Bg7 {[%clk 0:02:28]} 11. Bb5+ {[%clk 0:02:51]}  Bd7 {[%clk 0:02:27]} 12. cxb4 {[%clk 0:02:50]}  O-O {[%clk 0:02:26]} 13. Bxd7 {[%clk 0:02:47]}  Nbxd7 {[%clk 0:02:24]} 14. Nc6 {[%clk 0:02:43]}  Qe8 {[%clk 0:02:18]} 15. b5 {[%clk 0:02:35]}  e6 {[%clk 0:02:09]} 16. Qxd6 {[%clk 0:02:32]}  Nh5 {[%clk 0:01:53]} 17. Rd1 {[%clk 0:02:12]}  Nb8 {[%clk 0:01:40]} 18. Ne7+ {[%clk 0:01:58]}  Kh8 {[%clk 0:01:40]} 19. Nc3 {[%clk 0:01:53]}  Bf6 {[%clk 0:01:34]} 20. Bd4 {[%clk 0:01:50]}  Nd7 {[%clk 0:00:55]} 21. Nc6 {[%clk 0:01:25]}  e5 {[%clk 0:00:52]} 22. Be3 {[%clk 0:01:20]}  Nb8 {[%clk 0:00:41]} 23. g4 {[%clk 0:01:12]}  Bh4+ {[%clk 0:00:41]} 24. Bf2 {[%clk 0:01:13]}  Bxf2+ {[%clk 0:00:41]} 25. Kxf2 {[%clk 0:01:14]}  Nxc6 {[%clk 0:00:39]} 26. gxh5 {[%clk 0:01:11]}  Nd4 {[%clk 0:00:39]} 27. Qf6+ {[%clk 0:01:10]}  Kg8 {[%clk 0:00:37]} 28. Rxd4 {[%clk 0:01:10]} 1-0


[Site "https://www.chess.com"]

[Event "Titled Tuesday Blitz January 17 Early 2023"]
[White "Terry, Renato"]
[Black "Kobalia, Mikhail"]
[WhiteFideId "3803457"]
[BlackFideId "4119150"]
[WhiteElo "2520"]
[BlackElo "2578"]
[Result "0-1"]
[Round "04"]
[TimeControl "180+2"]
[Date "2023.01.17"]
[WhiteClock "0:00:04"]
[BlackClock "0:00:07"]

1. Nf3 {[%clk 0:02:50]}  d5 {[%clk 0:02:59]} 2. e3 {[%clk 0:02:50]}  Nf6 {[%clk 0:02:57]} 3. b3 {[%clk 0:02:50]}  Bg4 {[%clk 0:02:56]} 4. Bb2 {[%clk 0:02:50]}  Nbd7 {[%clk 0:02:53]} 5. h3 {[%clk 0:02:50]}  Bh5 {[%clk 0:02:52]} 6. d3 {[%clk 0:02:50]}  e6 {[%clk 0:02:51]} 7. g4 {[%clk 0:02:51]}  Bg6 {[%clk 0:02:51]} 8. Nh4 {[%clk 0:02:51]}  Bb4+ {[%clk 0:02:49]} 9. Nd2 {[%clk 0:02:46]}  Ne4 {[%clk 0:02:36]} 10. dxe4 {[%clk 0:02:30]}  Qxh4 {[%clk 0:02:35]} 11. exd5 {[%clk 0:02:29]}  O-O {[%clk 0:02:27]} 12. a3 {[%clk 0:02:20]}  Bxd2+ {[%clk 0:02:09]} 13. Qxd2 {[%clk 0:02:21]}  exd5 {[%clk 0:02:09]} 14. Bg2 {[%clk 0:01:54]}  Nf6 {[%clk 0:02:07]} 15. O-O {[%clk 0:01:49]}  Rad8 {[%clk 0:02:06]} 16. Be5 {[%clk 0:01:39]}  c6 {[%clk 0:01:57]} 17. Bg3 {[%clk 0:01:36]}  Qh6 {[%clk 0:01:41]} 18. Bf4 {[%clk 0:01:26]}  Qh4 {[%clk 0:01:40]} 19. Bg3 {[%clk 0:00:57]}  Qh6 {[%clk 0:01:39]} 20. f3 {[%clk 0:00:58]}  Rfe8 {[%clk 0:01:30]} 21. Bf4 {[%clk 0:00:34]}  Qh4 {[%clk 0:01:29]} 22. Rae1 {[%clk 0:00:15]}  Nd7 {[%clk 0:01:25]} 23. Bc7 {[%clk 0:00:10]}  Rc8 {[%clk 0:01:24]} 24. Bh2 {[%clk 0:00:11]}  Qe7 {[%clk 0:01:01]} 25. Re2 {[%clk 0:00:11]}  Qxa3 {[%clk 0:00:59]} 26. Rfe1 {[%clk 0:00:11]}  Qc5 {[%clk 0:00:57]} 27. c3 {[%clk 0:00:10]}  a5 {[%clk 0:00:55]} 28. Bf4 {[%clk 0:00:08]}  Nf8 {[%clk 0:00:53]} 29. Bg3 {[%clk 0:00:08]}  Ne6 {[%clk 0:00:48]} 30. h4 {[%clk 0:00:08]}  h5 {[%clk 0:00:46]} 31. gxh5 {[%clk 0:00:08]}  Bxh5 {[%clk 0:00:45]} 32. Kh2 {[%clk 0:00:09]}  Nf8 {[%clk 0:00:43]} 33. Rg1 {[%clk 0:00:09]}  Ng6 {[%clk 0:00:42]} 34. Rge1 {[%clk 0:00:05]}  Ne5 {[%clk 0:00:41]} 35. Rf2 {[%clk 0:00:05]}  Re6 {[%clk 0:00:38]} 36. Ref1 {[%clk 0:00:04]}  Rce8 {[%clk 0:00:37]} 37. Bh3 {[%clk 0:00:05]}  Rg6 {[%clk 0:00:34]} 38. Bf4 {[%clk 0:00:05]}  Rf6 {[%clk 0:00:31]} 39. Bg2 {[%clk 0:00:03]}  Ng6 {[%clk 0:00:28]} 40. Bg5 {[%clk 0:00:03]}  Rfe6 {[%clk 0:00:28]} 41. Bh3 {[%clk 0:00:03]}  Re5 {[%clk 0:00:20]} 42. f4 {[%clk 0:00:03]}  Rxe3 {[%clk 0:00:19]} 43. f5 {[%clk 0:00:04]}  Rxh3+ {[%clk 0:00:17]} 44. Kxh3 {[%clk 0:00:04]}  Ne5 {[%clk 0:00:17]} 45. f6 {[%clk 0:00:03]}  Ng4 {[%clk 0:00:14]} 46. Rf3 {[%clk 0:00:03]}  g6 {[%clk 0:00:12]} 47. Qd4 {[%clk 0:00:02]}  Qd6 {[%clk 0:00:11]} 48. Qf4 {[%clk 0:00:03]}  Qxf4 {[%clk 0:00:09]} 49. Rxf4 {[%clk 0:00:02]}  Re3+ {[%clk 0:00:09]} 50. R1f3 {[%clk 0:00:02]}  Nf2+ {[%clk 0:00:08]} 51. Kg3 {[%clk 0:00:02]}  Rxf3+ {[%clk 0:00:09]} 52. Rxf3 {[%clk 0:00:03]}  Ne4+ {[%clk 0:00:09]} 53. Kf4 {[%clk 0:00:02]}  Bxf3 {[%clk 0:00:09]} 54. Kxf3 {[%clk 0:00:03]}  Nxg5+ {[%clk 0:00:06]} 55. hxg5 {[%clk 0:00:04]}  b5 {[%clk 0:00:06]} 56. Ke3 {[%clk 0:00:03]}  c5 {[%clk 0:00:06]} 57. Kf4 {[%clk 0:00:03]}  a4 {[%clk 0:00:06]} 58. bxa4 {[%clk 0:00:04]}  bxa4 {[%clk 0:00:07]} 0-1


[Site "https://www.chess.com"]

[Event "Titled Tuesday Blitz January 17 Early 2023"]
[White "Domingo Nunez, Ruben"]
[Black "Sanal, Vahap"]
[WhiteFideId "22245570"]
[BlackFideId "6300545"]
[WhiteElo "2416"]
[BlackElo "2600"]
[Result "0-1"]
[Round "04"]
[TimeControl "180+2"]
[Date "2023.01.17"]
[WhiteClock "0:00:30"]
[BlackClock "0:01:19"]

1. e4 {[%clk 0:02:59]}  c6 {[%clk 0:02:55]} 2. Nf3 {[%clk 0:02:59]}  d5 {[%clk 0:02:55]} 3. Nc3 {[%clk 0:03:00]}  Bg4 {[%clk 0:02:54]} 4. h3 {[%clk 0:03:00]}  Bxf3 {[%clk 0:02:53]} 5. Qxf3 {[%clk 0:03:01]}  e6 {[%clk 0:02:54]} 6. d3 {[%clk 0:03:00]}  Nd7 {[%clk 0:02:54]} 7. Qg3 {[%clk 0:02:59]}  g6 {[%clk 0:02:45]} 8. h4 {[%clk 0:02:59]}  h5 {[%clk 0:02:44]} 9. exd5 {[%clk 0:02:49]}  cxd5 {[%clk 0:02:40]} 10. Nb5 {[%clk 0:02:49]}  Qa5+ {[%clk 0:02:39]} 11. Nc3 {[%clk 0:02:44]}  d4 {[%clk 0:02:39]} 12. Bd2 {[%clk 0:02:39]}  dxc3 {[%clk 0:02:39]} 13. bxc3 {[%clk 0:02:38]}  Bh6 {[%clk 0:02:37]} 14. f4 {[%clk 0:02:27]}  Bg7 {[%clk 0:02:37]} 15. d4 {[%clk 0:02:27]}  Ne7 {[%clk 0:02:34]} 16. Bd3 {[%clk 0:02:28]}  O-O {[%clk 0:02:32]} 17. O-O {[%clk 0:02:27]}  Bxd4+ {[%clk 0:02:31]} 18. Kh1 {[%clk 0:02:28]}  Bxc3 {[%clk 0:02:23]} 19. Bxg6 {[%clk 0:02:27]}  fxg6 {[%clk 0:02:17]} 20. Bxc3 {[%clk 0:02:26]}  Qf5 {[%clk 0:02:13]} 21. Rae1 {[%clk 0:02:11]}  Rac8 {[%clk 0:02:12]} 22. Ba1 {[%clk 0:02:11]}  Rxc2 {[%clk 0:02:10]} 23. Re3 {[%clk 0:01:59]}  Nd5 {[%clk 0:02:04]} 24. Rb3 {[%clk 0:01:33]}  Nc5 {[%clk 0:02:04]} 25. Ra3 {[%clk 0:01:33]}  Ne4 {[%clk 0:02:00]} 26. Qe1 {[%clk 0:01:30]}  a6 {[%clk 0:01:49]} 27. Ra4 {[%clk 0:01:25]}  Nec3 {[%clk 0:01:32]} 28. Rc4 {[%clk 0:01:06]}  Qg4 {[%clk 0:01:21]} 29. Rg1 {[%clk 0:00:57]}  Ne2 {[%clk 0:01:19]} 30. Rxc2 {[%clk 0:00:30]}  Ng3+ {[%clk 0:01:19]} 0-1


[Site "https://www.chess.com"]

[Event "Titled Tuesday Blitz January 17 Early 2023"]
[White "Tatarinov, Dmitry"]
[Black "Remizov, Yaroslav"]
[WhiteFideId "24160067"]
[BlackFideId "34134015"]
[WhiteElo "2310"]
[BlackElo "2421"]
[Result "1-0"]
[Round "04"]
[TimeControl "180+2"]
[Date "2023.01.17"]
[WhiteClock "0:00:31"]
[BlackClock "0:00:05"]

1. Nf3 {[%clk 0:03:00]}  d5 {[%clk 0:02:59]} 2. e3 {[%clk 0:02:59]}  Nf6 {[%clk 0:02:58]} 3. c4 {[%clk 0:02:59]}  e6 {[%clk 0:02:58]} 4. b3 {[%clk 0:02:59]}  c5 {[%clk 0:02:58]} 5. cxd5 {[%clk 0:02:59]}  exd5 {[%clk 0:02:58]} 6. d4 {[%clk 0:03:00]}  Nc6 {[%clk 0:02:58]} 7. Bb2 {[%clk 0:02:58]}  cxd4 {[%clk 0:02:58]} 8. Nxd4 {[%clk 0:02:58]}  Bb4+ {[%clk 0:02:58]} 9. Bc3 {[%clk 0:02:59]}  Bd6 {[%clk 0:02:58]} 10. Bd3 {[%clk 0:02:55]}  O-O {[%clk 0:02:54]} 11. Nd2 {[%clk 0:02:47]}  Ne5 {[%clk 0:02:50]} 12. Be2 {[%clk 0:02:46]}  Re8 {[%clk 0:02:36]} 13. O-O {[%clk 0:02:45]}  Bd7 {[%clk 0:02:20]} 14. Bb2 {[%clk 0:02:30]}  h6 {[%clk 0:02:12]} 15. N2f3 {[%clk 0:02:24]}  a6 {[%clk 0:02:04]} 16. Rc1 {[%clk 0:02:20]}  Ng6 {[%clk 0:02:02]} 17. Bd3 {[%clk 0:02:16]}  Ne4 {[%clk 0:01:58]} 18. Ne2 {[%clk 0:02:17]}  Qe7 {[%clk 0:01:52]} 19. Ng3 {[%clk 0:02:09]}  Rad8 {[%clk 0:01:45]} 20. Qc2 {[%clk 0:02:07]}  Rc8 {[%clk 0:01:37]} 21. Qb1 {[%clk 0:02:07]}  Rcd8 {[%clk 0:01:19]} 22. Qa1 {[%clk 0:02:03]}  f6 {[%clk 0:01:03]} 23. Nd4 {[%clk 0:02:03]}  Nh4 {[%clk 0:01:00]} 24. Rfe1 {[%clk 0:01:53]}  Qf7 {[%clk 0:00:35]} 25. Nxe4 {[%clk 0:01:50]}  Qg6 {[%clk 0:00:26]} 26. Ng3 {[%clk 0:01:36]}  Qxd3 {[%clk 0:00:23]} 27. Qb1 {[%clk 0:01:36]}  Qxb1 {[%clk 0:00:23]} 28. Rxb1 {[%clk 0:01:37]}  Be5 {[%clk 0:00:10]} 29. Rbc1 {[%clk 0:01:36]}  Rc8 {[%clk 0:00:10]} 30. f3 {[%clk 0:01:18]}  Kf7 {[%clk 0:00:09]} 31. Kf2 {[%clk 0:01:18]}  Ng6 {[%clk 0:00:07]} 32. Nge2 {[%clk 0:01:13]}  Ne7 {[%clk 0:00:06]} 33. Nf4 {[%clk 0:01:09]}  Bxf4 {[%clk 0:00:02]} 34. exf4 {[%clk 0:01:10]}  Nf5 {[%clk 0:00:03]} 35. g4 {[%clk 0:01:03]}  Nxd4 {[%clk 0:00:03]} 36. Bxd4 {[%clk 0:01:04]}  Rxe1 {[%clk 0:00:03]} 37. Rxc8 {[%clk 0:01:02]}  Bxc8 {[%clk 0:00:03]} 38. Kxe1 {[%clk 0:01:02]}  f5 {[%clk 0:00:03]} 39. h3 {[%clk 0:01:00]}  g6 {[%clk 0:00:03]} 40. Kf2 {[%clk 0:01:00]}  Ke6 {[%clk 0:00:03]} 41. Kg3 {[%clk 0:00:59]}  Kf7 {[%clk 0:00:03]} 42. Kh4 {[%clk 0:00:59]}  Bd7 {[%clk 0:00:03]} 43. Be5 {[%clk 0:00:59]}  Bb5 {[%clk 0:00:03]} 44. Kg3 {[%clk 0:00:57]}  Bd3 {[%clk 0:00:03]} 45. Kf2 {[%clk 0:00:56]}  Bb1 {[%clk 0:00:03]} 46. a3 {[%clk 0:00:57]}  Ke6 {[%clk 0:00:03]} 47. Bg7 {[%clk 0:00:56]}  h5 {[%clk 0:00:03]} 48. Bd4 {[%clk 0:00:52]}  Bc2 {[%clk 0:00:03]} 49. b4 {[%clk 0:00:51]}  Bd1 {[%clk 0:00:03]} 50. g5 {[%clk 0:00:49]}  Kd7 {[%clk 0:00:03]} 51. Ke3 {[%clk 0:00:47]}  Kc6 {[%clk 0:00:03]} 52. Kd2 {[%clk 0:00:43]}  Bxf3 {[%clk 0:00:03]} 53. a4 {[%clk 0:00:37]}  h4 {[%clk 0:00:02]} 54. Bf2 {[%clk 0:00:35]}  Bg2 {[%clk 0:00:02]} 55. Kc3 {[%clk 0:00:33]}  Bxh3 {[%clk 0:00:02]} 56. Bxh4 {[%clk 0:00:34]}  Bg2 {[%clk 0:00:02]} 57. Bf2 {[%clk 0:00:34]}  Bf3 {[%clk 0:00:02]} 58. Bd4 {[%clk 0:00:33]}  Bh5 {[%clk 0:00:02]} 59. Be5 {[%clk 0:00:33]}  Bg4 {[%clk 0:00:03]} 60. Kd4 {[%clk 0:00:33]}  Bf3 {[%clk 0:00:04]} 61. a5 {[%clk 0:00:33]}  Bd1 {[%clk 0:00:04]} 62. Bf6 {[%clk 0:00:33]}  Bf3 {[%clk 0:00:04]} 63. Bg7 {[%clk 0:00:33]}  Kd6 {[%clk 0:00:05]} 64. Bf8+ {[%clk 0:00:33]}  Kc6 {[%clk 0:00:05]} 65. Ke5 {[%clk 0:00:32]}  Kb5 {[%clk 0:00:05]} 66. Kd4 {[%clk 0:00:32]}  Ka4 {[%clk 0:00:05]} 67. Bc5 {[%clk 0:00:32]}  Kb5 {[%clk 0:00:06]} 68. Bd6 {[%clk 0:00:33]}  Be4 {[%clk 0:00:06]} 69. Bc5 {[%clk 0:00:33]}  Kc6 {[%clk 0:00:06]} 70. Ke5 {[%clk 0:00:34]}  Bc2 {[%clk 0:00:07]} 71. Kf6 {[%clk 0:00:33]}  b6 {[%clk 0:00:04]} 72. axb6 {[%clk 0:00:30]}  a5 {[%clk 0:00:05]} 73. bxa5 {[%clk 0:00:29]}  Bd3 {[%clk 0:00:04]} 74. Bd4 {[%clk 0:00:29]}  Ba6 {[%clk 0:00:04]} 75. Kxg6 {[%clk 0:00:30]}  Kb5 {[%clk 0:00:04]} 76. Kf6 {[%clk 0:00:30]}  Kc4 {[%clk 0:00:05]} 77. Ke5 {[%clk 0:00:30]}  Kb5 {[%clk 0:00:05]} 78. g6 {[%clk 0:00:31]} 1-0


[Site "https://www.chess.com"]

[Event "Titled Tuesday Blitz January 17 Early 2023"]
[White "Srihari L R"]
[Black "Aravindh, Chithambaram VR."]
[WhiteFideId "46617116"]
[BlackFideId "5072786"]
[WhiteElo "2416"]
[BlackElo "2633"]
[Result "0-1"]
[Round "04"]
[TimeControl "180+2"]
[Date "2023.01.17"]
[WhiteClock "0:00:01"]
[BlackClock "0:00:05"]

1. c4 {[%clk 0:03:00]}  e6 {[%clk 0:02:58]} 2. Nc3 {[%clk 0:02:59]}  d5 {[%clk 0:02:57]} 3. d4 {[%clk 0:02:58]}  g6 {[%clk 0:02:56]} 4. g3 {[%clk 0:02:51]}  Bg7 {[%clk 0:02:56]} 5. Nf3 {[%clk 0:02:51]}  Ne7 {[%clk 0:02:56]} 6. cxd5 {[%clk 0:02:50]}  exd5 {[%clk 0:02:56]} 7. Bg2 {[%clk 0:02:50]}  O-O {[%clk 0:02:56]} 8. O-O {[%clk 0:02:51]}  c6 {[%clk 0:02:56]} 9. Re1 {[%clk 0:02:48]}  Re8 {[%clk 0:02:56]} 10. Bf4 {[%clk 0:02:48]}  Nf5 {[%clk 0:02:50]} 11. Be5 {[%clk 0:02:41]}  Nd7 {[%clk 0:02:47]} 12. Bxg7 {[%clk 0:02:40]}  Nxg7 {[%clk 0:02:48]} 13. e4 {[%clk 0:02:38]}  dxe4 {[%clk 0:02:46]} 14. Nxe4 {[%clk 0:02:39]}  Nf6 {[%clk 0:02:36]} 15. Nxf6+ {[%clk 0:02:27]}  Qxf6 {[%clk 0:02:37]} 16. Rxe8+ {[%clk 0:02:27]}  Nxe8 {[%clk 0:02:37]} 17. Qb3 {[%clk 0:02:28]}  Qe7 {[%clk 0:02:24]} 18. Re1 {[%clk 0:02:25]}  Be6 {[%clk 0:02:23]} 19. d5 {[%clk 0:02:01]}  cxd5 {[%clk 0:02:24]} 20. Nd4 {[%clk 0:02:01]}  Nf6 {[%clk 0:01:48]} 21. Nxe6 {[%clk 0:01:44]}  fxe6 {[%clk 0:01:49]} 22. Bxd5 {[%clk 0:01:43]}  Nxd5 {[%clk 0:01:35]} 23. Qxd5 {[%clk 0:01:42]}  Re8 {[%clk 0:01:33]} 24. Qd4 {[%clk 0:01:37]}  b6 {[%clk 0:01:16]} 25. Qc4 {[%clk 0:01:35]}  Kg7 {[%clk 0:01:14]} 26. Re5 {[%clk 0:01:33]}  Qd6 {[%clk 0:01:09]} 27. Qc3 {[%clk 0:01:31]}  Kg8 {[%clk 0:01:09]} 28. Kg2 {[%clk 0:01:28]}  Re7 {[%clk 0:01:06]} 29. Qe3 {[%clk 0:01:24]}  Qc6+ {[%clk 0:01:06]} 30. Kh3 {[%clk 0:01:15]}  Qc4 {[%clk 0:01:00]} 31. b3 {[%clk 0:00:57]}  Qf1+ {[%clk 0:00:59]} 32. Kh4 {[%clk 0:00:55]}  Qd1 {[%clk 0:00:31]} 33. Kh3 {[%clk 0:00:46]}  Qf1+ {[%clk 0:00:30]} 34. Kh4 {[%clk 0:00:46]}  Qg2 {[%clk 0:00:29]} 35. h3 {[%clk 0:00:39]}  Qc6 {[%clk 0:00:28]} 36. f4 {[%clk 0:00:37]}  Kf7 {[%clk 0:00:23]} 37. g4 {[%clk 0:00:30]}  Qg2 {[%clk 0:00:21]} 38. f5 {[%clk 0:00:26]}  gxf5 {[%clk 0:00:11]} 39. gxf5 {[%clk 0:00:26]}  Kf8 {[%clk 0:00:03]} 40. f6 {[%clk 0:00:15]}  Rf7 {[%clk 0:00:02]} 41. Qh6+ {[%clk 0:00:14]}  Ke8 {[%clk 0:00:01]} 42. Rxe6+ {[%clk 0:00:13]}  Kd7 {[%clk 0:00:02]} 43. Qe3 {[%clk 0:00:13]}  Qd5 {[%clk 0:00:01]} 44. Re7+ {[%clk 0:00:12]}  Kc6 {[%clk 0:00:02]} 45. Rxf7 {[%clk 0:00:12]}  Qxf7 {[%clk 0:00:03]} 46. Qe5 {[%clk 0:00:12]}  Qg6 {[%clk 0:00:03]} 47. Qf4 {[%clk 0:00:11]}  Qf7 {[%clk 0:00:03]} 48. Kg5 {[%clk 0:00:11]}  Qg6+ {[%clk 0:00:03]} 49. Kh4 {[%clk 0:00:11]}  Qf7 {[%clk 0:00:04]} 50. Kg3 {[%clk 0:00:11]}  Qg6+ {[%clk 0:00:04]} 51. Kf3 {[%clk 0:00:11]}  Qd3+ {[%clk 0:00:05]} 52. Kf2 {[%clk 0:00:11]}  Qc2+ {[%clk 0:00:05]} 53. Ke3 {[%clk 0:00:08]}  Qc3+ {[%clk 0:00:05]} 54. Ke4 {[%clk 0:00:06]}  Qc2+ {[%clk 0:00:04]} 55. Ke5 {[%clk 0:00:05]}  Qc5+ {[%clk 0:00:05]} 56. Ke6 {[%clk 0:00:05]}  Qd5+ {[%clk 0:00:05]} 57. Ke7 {[%clk 0:00:05]}  Qd7+ {[%clk 0:00:06]} 58. Kf8 {[%clk 0:00:05]}  Qxh3 {[%clk 0:00:05]} 59. f7 {[%clk 0:00:05]}  Kd7 {[%clk 0:00:05]} 60. Qd4+ {[%clk 0:00:05]}  Ke6 {[%clk 0:00:05]} 61. Qe4+ {[%clk 0:00:06]}  Kf6 {[%clk 0:00:05]} 62. Qf4+ {[%clk 0:00:06]}  Kg6 {[%clk 0:00:06]} 63. Kg8 {[%clk 0:00:06]}  Qe6 {[%clk 0:00:06]} 64. Qg3+ {[%clk 0:00:03]}  Kf6 {[%clk 0:00:05]} 65. Qg7+ {[%clk 0:00:03]}  Ke7 {[%clk 0:00:05]} 66. Qf8+ {[%clk 0:00:03]}  Kf6 {[%clk 0:00:06]} 67. Qe8 {[%clk 0:00:03]}  Qd5 {[%clk 0:00:05]} 68. Qf8 {[%clk 0:00:02]}  Qg5+ {[%clk 0:00:05]} 69. Kh8 {[%clk 0:00:02]}  Qg6 {[%clk 0:00:04]} 70. Qd6+ {[%clk 0:00:01]}  Kxf7 {[%clk 0:00:04]} 71. Qd7+ {[%clk 0:00:02]}  Kf6 {[%clk 0:00:04]} 72. Qd6+ {[%clk 0:00:02]}  Kf5 {[%clk 0:00:05]} 73. Qd3+ {[%clk 0:00:03]}  Kf4 {[%clk 0:00:05]} 74. Qd2+ {[%clk 0:00:03]}  Ke4 {[%clk 0:00:05]} 75. Qe2+ {[%clk 0:00:03]}  Kd4 {[%clk 0:00:05]} 76. Qf2+ {[%clk 0:00:03]}  Kc3 {[%clk 0:00:05]} 77. Qe1+ {[%clk 0:00:04]}  Kb2 {[%clk 0:00:06]} 78. Qf2+ {[%clk 0:00:03]}  Qc2 {[%clk 0:00:04]} 79. Qf7 {[%clk 0:00:03]}  Qc3+ {[%clk 0:00:03]} 80. Kxh7 {[%clk 0:00:03]}  Qd3+ {[%clk 0:00:04]} 81. Kg8 {[%clk 0:00:02]}  Qd8+ {[%clk 0:00:03]} 82. Kh7 {[%clk 0:00:02]}  a5 {[%clk 0:00:04]} 83. a4 {[%clk 0:00:01]}  Qd4 {[%clk 0:00:03]} 84. Kg8 {[%clk 0:00:01]}  Qg4+ {[%clk 0:00:03]} 85. Kf8 {[%clk 0:00:01]}  Qb4+ {[%clk 0:00:04]} 86. Kg8 {[%clk 0:00:01]}  Qxb3 {[%clk 0:00:04]} 87. Qxb3+ {[%clk 0:00:01]}  Kxb3 {[%clk 0:00:05]} 0-1


[Site "https://www.chess.com"]